[Event "Titled Tuesday Blitz May 23 Late 2023"]
[White "Jimenez Almeida, Luis David"]
[Black "Chabris, Christopher"]
[WhiteFideId "22242244"]
[BlackFideId "2005263"]
[WhiteElo "2245"]
[BlackElo "2361"]
[Result "1-0"]
[Round "06"]
[TimeControl "180+2"]
[Date "2023.05.23"]
[WhiteClock "0:00:14"]
[BlackClock "0:00:00"]

1. e4 {[%clk 0:03:00]}  e5 {[%clk 0:02:57]} 2. Nf3 {[%clk 0:03:00]}  Nc6 {[%clk 0:02:57]} 3. Bb5 {[%clk 0:03:00]}  a6 {[%clk 0:02:57]} 4. Ba4 {[%clk 0:03:00]}  Nf6 {[%clk 0:02:57]} 5. O-O {[%clk 0:03:00]}  Be7 {[%clk 0:02:58]} 6. Re1 {[%clk 0:03:00]}  b5 {[%clk 0:02:58]} 7. Bb3 {[%clk 0:03:00]}  d6 {[%clk 0:02:58]} 8. c3 {[%clk 0:03:00]}  O-O {[%clk 0:02:59]} 9. d3 {[%clk 0:03:00]}  Bb7 {[%clk 0:02:55]} 10. Nbd2 {[%clk 0:02:59]}  h6 {[%clk 0:02:55]} 11. Nf1 {[%clk 0:02:59]}  Re8 {[%clk 0:02:55]} 12. Ng3 {[%clk 0:02:59]}  Bf8 {[%clk 0:02:53]} 13. h3 {[%clk 0:02:56]}  Na5 {[%clk 0:02:38]} 14. Bc2 {[%clk 0:02:55]}  c5 {[%clk 0:02:38]} 15. a4 {[%clk 0:02:54]}  b4 {[%clk 0:02:33]} 16. c4 {[%clk 0:02:51]}  Nc6 {[%clk 0:02:24]} 17. Be3 {[%clk 0:02:51]}  g6 {[%clk 0:02:08]} 18. Qd2 {[%clk 0:02:50]}  Kh7 {[%clk 0:02:07]} 19. Bd1 {[%clk 0:02:50]}  Bc8 {[%clk 0:01:58]} 20. Nh2 {[%clk 0:02:49]}  Rb8 {[%clk 0:01:48]} 21. b3 {[%clk 0:02:46]}  a5 {[%clk 0:01:48]} 22. f4 {[%clk 0:02:46]}  exf4 {[%clk 0:01:43]} 23. Bxf4 {[%clk 0:02:47]}  Bg7 {[%clk 0:01:39]} 24. Rb1 {[%clk 0:02:41]}  Nd4 {[%clk 0:01:38]} 25. Kh1 {[%clk 0:02:37]}  Ne6 {[%clk 0:01:24]} 26. Be3 {[%clk 0:02:35]}  Nd7 {[%clk 0:01:23]} 27. Rf1 {[%clk 0:02:15]}  Ne5 {[%clk 0:01:21]} 28. Ng4 {[%clk 0:02:14]}  Nxg4 {[%clk 0:01:07]} 29. Bxg4 {[%clk 0:02:15]}  Rb7 {[%clk 0:01:02]} 30. Ne2 {[%clk 0:02:08]}  h5 {[%clk 0:00:58]} 31. Bf3 {[%clk 0:02:08]}  Be5 {[%clk 0:00:54]} 32. d4 {[%clk 0:01:34]}  cxd4 {[%clk 0:00:54]} 33. Nxd4 {[%clk 0:01:35]}  Nc5 {[%clk 0:00:45]} 34. Nc6 {[%clk 0:01:30]}  Qc7 {[%clk 0:00:33]} 35. Nxe5 {[%clk 0:01:01]}  dxe5 {[%clk 0:00:32]} 36. Qd5 {[%clk 0:01:00]}  Ne6 {[%clk 0:00:28]} 37. c5 {[%clk 0:00:58]}  Rd8 {[%clk 0:00:26]} 38. Qc4 {[%clk 0:00:58]}  Ra7 {[%clk 0:00:23]} 39. Rfd1 {[%clk 0:00:50]}  Ba6 {[%clk 0:00:20]} 40. Qc2 {[%clk 0:00:47]}  Nd4 {[%clk 0:00:19]} 41. Qf2 {[%clk 0:00:43]}  Qxc5 {[%clk 0:00:16]} 42. Rbc1 {[%clk 0:00:39]}  Qb6 {[%clk 0:00:14]} 43. g4 {[%clk 0:00:27]}  hxg4 {[%clk 0:00:11]} 44. Qh4+ {[%clk 0:00:22]}  Kg8 {[%clk 0:00:11]} 45. hxg4 {[%clk 0:00:22]}  Nxf3 {[%clk 0:00:10]} 46. Bxb6 {[%clk 0:00:20]}  Rxd1+ {[%clk 0:00:09]} 47. Rxd1 {[%clk 0:00:20]}  Nxh4 {[%clk 0:00:09]} 48. Bxa7 {[%clk 0:00:19]}  Be2 {[%clk 0:00:09]} 49. Rd8+ {[%clk 0:00:18]}  Kg7 {[%clk 0:00:10]} 50. g5 {[%clk 0:00:18]}  Bf3+ {[%clk 0:00:09]} 51. Kg1 {[%clk 0:00:17]}  Bxe4 {[%clk 0:00:09]} 52. Bb6 {[%clk 0:00:16]}  Nf3+ {[%clk 0:00:08]} 53. Kf2 {[%clk 0:00:17]}  Nxg5 {[%clk 0:00:08]} 54. Bxa5 {[%clk 0:00:17]}  Ne6 {[%clk 0:00:08]} 55. Rd6 {[%clk 0:00:17]}  Bc2 {[%clk 0:00:08]} 56. Bxb4 {[%clk 0:00:16]}  Bxb3 {[%clk 0:00:08]} 57. a5 {[%clk 0:00:16]}  Bc4 {[%clk 0:00:08]} 58. a6 {[%clk 0:00:13]}  Nc7 {[%clk 0:00:05]} 59. a7 {[%clk 0:00:10]}  f5 {[%clk 0:00:04]} 60. Rd7+ {[%clk 0:00:10]}  Kf6 {[%clk 0:00:04]} 61. Rxc7 {[%clk 0:00:11]}  Bd5 {[%clk 0:00:02]} 62. Rc8 {[%clk 0:00:12]}  e4 {[%clk 0:00:02]} 63. a8=Q {[%clk 0:00:12]}  Bxa8 {[%clk 0:00:01]} 64. Rxa8 {[%clk 0:00:13]}  Ke5 {[%clk 0:00:01]} 65. Bc3+ {[%clk 0:00:13]}  Kf4 {[%clk 0:00:02]} 66. Bd2+ {[%clk 0:00:14]}  Kg4 {[%clk 0:00:02]} 67. Ra3 {[%clk 0:00:14]}  g5 {[%clk 0:00:02]} 68. Rg3+ {[%clk 0:00:14]}  Kh4 {[%clk 0:00:00]} 69. Rxg5 {[%clk 0:00:14]} 1-0


[Site "https://www.chess.com"]

[Event "Titled Tuesday Blitz May 23 Late 2023"]
[White "Sarkar, Justin"]
[Black "Blitz"]
[WhiteFideId "2010011"]
[WhiteElo "2168"]
[BlackElo "2470"]
[Result "0-1"]
[Round "06"]
[TimeControl "180+2"]
[Date "2023.05.23"]
[WhiteClock "0:00:00"]
[BlackClock "0:00:05"]

1. e4 {[%clk 0:02:57]}  c5 {[%clk 0:03:00]} 2. Nf3 {[%clk 0:02:57]}  d6 {[%clk 0:03:00]} 3. d4 {[%clk 0:02:55]}  cxd4 {[%clk 0:03:01]} 4. Nxd4 {[%clk 0:02:53]}  Nf6 {[%clk 0:03:01]} 5. Nc3 {[%clk 0:02:53]}  a6 {[%clk 0:03:02]} 6. Qf3 {[%clk 0:02:37]}  Nbd7 {[%clk 0:02:48]} 7. Be3 {[%clk 0:02:31]}  Qc7 {[%clk 0:02:36]} 8. O-O-O {[%clk 0:02:25]}  b5 {[%clk 0:02:36]} 9. e5 {[%clk 0:02:19]}  Bb7 {[%clk 0:02:36]} 10. exd6 {[%clk 0:01:57]}  Bxf3 {[%clk 0:02:15]} 11. dxc7 {[%clk 0:01:56]}  Bxd1 {[%clk 0:02:16]} 12. Kxd1 {[%clk 0:01:53]}  Rc8 {[%clk 0:02:10]} 13. a4 {[%clk 0:01:43]}  e5 {[%clk 0:01:43]} 14. Nb3 {[%clk 0:01:19]}  bxa4 {[%clk 0:01:28]} 15. Bxa6 {[%clk 0:01:13]}  Rxc7 {[%clk 0:01:26]} 16. Nxa4 {[%clk 0:01:13]}  Nd5 {[%clk 0:01:15]} 17. Bb5 {[%clk 0:00:54]}  Nxe3+ {[%clk 0:01:05]} 18. fxe3 {[%clk 0:00:53]}  Kd8 {[%clk 0:01:06]} 19. c4 {[%clk 0:00:47]}  Bd6 {[%clk 0:00:34]} 20. Ke2 {[%clk 0:00:26]}  Ke7 {[%clk 0:00:34]} 21. Rd1 {[%clk 0:00:20]}  Rb8 {[%clk 0:00:20]} 22. Nc3 {[%clk 0:00:12]}  Nf6 {[%clk 0:00:13]} 23. Na5 {[%clk 0:00:07]}  Rbc8 {[%clk 0:00:10]} 24. Nd5+ {[%clk 0:00:02]}  Nxd5 {[%clk 0:00:10]} 25. Rxd5 {[%clk 0:00:02]}  Ke6 {[%clk 0:00:06]} 26. Nb3 {[%clk 0:00:02]}  Rb8 {[%clk 0:00:05]} 27. e4 {[%clk 0:00:00]}  f5 {[%clk 0:00:05]} 0-1


[Site "https://www.chess.com"]

[Event "Titled Tuesday Blitz May 23 Late 2023"]
[White "Le Goff, Ronan"]
[Black "Celestino, Rafael Teixeira"]
[WhiteFideId "612073"]
[BlackFideId "2108925"]
[WhiteElo "2275"]
[BlackElo "2349"]
[Result "0-1"]
[Round "06"]
[TimeControl "180+2"]
[Date "2023.05.23"]
[WhiteClock "0:02:03"]
[BlackClock "0:01:28"]

1. d4 {[%clk 0:03:00]}  Nf6 {[%clk 0:02:58]} 2. Nf3 {[%clk 0:03:00]}  e6 {[%clk 0:02:56]} 3. c4 {[%clk 0:03:01]}  d5 {[%clk 0:02:56]} 4. Nc3 {[%clk 0:03:00]}  Bb4 {[%clk 0:02:56]} 5. cxd5 {[%clk 0:02:58]}  exd5 {[%clk 0:02:56]} 6. Bg5 {[%clk 0:02:59]}  h6 {[%clk 0:02:56]} 7. Bxf6 {[%clk 0:02:58]}  Qxf6 {[%clk 0:02:57]} 8. Rc1 {[%clk 0:02:57]}  O-O {[%clk 0:02:56]} 9. e3 {[%clk 0:02:56]}  Bg4 {[%clk 0:02:55]} 10. Be2 {[%clk 0:02:56]}  Nd7 {[%clk 0:02:55]} 11. O-O {[%clk 0:02:55]}  c6 {[%clk 0:02:56]} 12. a3 {[%clk 0:02:54]}  Bd6 {[%clk 0:02:55]} 13. b4 {[%clk 0:02:54]}  Qe7 {[%clk 0:02:51]} 14. Qb3 {[%clk 0:02:47]}  a6 {[%clk 0:02:47]} 15. Rfe1 {[%clk 0:02:44]}  Nf6 {[%clk 0:02:45]} 16. Rb1 {[%clk 0:02:41]}  Ne4 {[%clk 0:02:42]} 17. Nxe4 {[%clk 0:02:40]}  Qxe4 {[%clk 0:02:32]} 18. Nd2 {[%clk 0:02:36]}  Qg6 {[%clk 0:02:29]} 19. Bxg4 {[%clk 0:02:34]}  Qxg4 {[%clk 0:02:30]} 20. Nf1 {[%clk 0:02:34]}  f5 {[%clk 0:02:27]} 21. a4 {[%clk 0:02:26]}  f4 {[%clk 0:02:25]} 22. e4 {[%clk 0:02:23]}  f3 {[%clk 0:01:57]} 23. Ng3 {[%clk 0:02:20]}  h5 {[%clk 0:01:48]} 24. e5 {[%clk 0:02:18]}  Be7 {[%clk 0:01:48]} 25. Re3 {[%clk 0:02:16]}  fxg2 {[%clk 0:01:36]} 26. Rbe1 {[%clk 0:02:12]}  h4 {[%clk 0:01:30]} 27. Ne2 {[%clk 0:02:03]}  Bg5 {[%clk 0:01:28]} 0-1


[Site "https://www.chess.com"]

[Event "Titled Tuesday Blitz May 23 Late 2023"]
[White "Kovalevsky, Stanislav"]
[Black "Bashkansky, Ethan"]
[WhiteFideId "13508598"]
[BlackFideId "2071533"]
[WhiteElo "2174"]
[BlackElo "2341"]
[Result "1/2-1/2"]
[Round "06"]
[TimeControl "180+2"]
[Date "2023.05.23"]
[WhiteClock "0:00:20"]
[BlackClock "0:00:05"]

1. c4 {[%clk 0:03:00]}  c6 {[%clk 0:02:59]} 2. e4 {[%clk 0:03:00]}  d5 {[%clk 0:02:59]} 3. exd5 {[%clk 0:03:01]}  cxd5 {[%clk 0:03:00]} 4. cxd5 {[%clk 0:03:02]}  Nf6 {[%clk 0:03:00]} 5. Nc3 {[%clk 0:03:03]}  Nxd5 {[%clk 0:02:59]} 6. Bc4 {[%clk 0:03:04]}  e6 {[%clk 0:02:59]} 7. Nge2 {[%clk 0:02:59]}  Be7 {[%clk 0:02:59]} 8. O-O {[%clk 0:02:58]}  O-O {[%clk 0:02:59]} 9. d4 {[%clk 0:02:57]}  b6 {[%clk 0:02:58]} 10. Nxd5 {[%clk 0:02:57]}  exd5 {[%clk 0:02:58]} 11. Bd3 {[%clk 0:02:58]}  Ba6 {[%clk 0:02:53]} 12. Nf4 {[%clk 0:02:56]}  Bxd3 {[%clk 0:02:50]} 13. Qxd3 {[%clk 0:02:57]}  Nc6 {[%clk 0:02:43]} 14. Be3 {[%clk 0:02:55]}  Bg5 {[%clk 0:02:36]} 15. Rac1 {[%clk 0:02:49]}  Rc8 {[%clk 0:02:32]} 16. h3 {[%clk 0:02:43]}  Re8 {[%clk 0:02:17]} 17. Rfe1 {[%clk 0:02:39]}  Bxf4 {[%clk 0:01:44]} 18. Bxf4 {[%clk 0:02:39]}  Qf6 {[%clk 0:01:45]} 19. Be5 {[%clk 0:02:23]}  Nxe5 {[%clk 0:01:39]} 20. Rxc8 {[%clk 0:02:22]}  Rxc8 {[%clk 0:01:38]} 21. dxe5 {[%clk 0:02:22]}  Qe6 {[%clk 0:01:34]} 22. f4 {[%clk 0:02:21]}  g6 {[%clk 0:01:32]} 23. Rd1 {[%clk 0:02:18]}  Rd8 {[%clk 0:01:28]} 24. Qc3 {[%clk 0:02:09]}  h5 {[%clk 0:01:25]} 25. a3 {[%clk 0:02:03]}  Rc8 {[%clk 0:01:16]} 26. Qd4 {[%clk 0:01:59]}  Rc2 {[%clk 0:01:02]} 27. Qxd5 {[%clk 0:01:54]}  Qxd5 {[%clk 0:01:03]} 28. Rxd5 {[%clk 0:01:54]}  Rxb2 {[%clk 0:01:03]} 29. Rd8+ {[%clk 0:01:55]}  Kg7 {[%clk 0:00:59]} 30. Rd7 {[%clk 0:01:56]}  a6 {[%clk 0:00:52]} 31. e6 {[%clk 0:01:54]}  Rb1+ {[%clk 0:00:38]} 32. Kf2 {[%clk 0:01:52]}  Rb2+ {[%clk 0:00:38]} 33. Kf3 {[%clk 0:01:45]}  Rb3+ {[%clk 0:00:38]} 34. Ke4 {[%clk 0:01:45]}  Kf6 {[%clk 0:00:38]} 35. e7 {[%clk 0:01:38]}  Rb1 {[%clk 0:00:30]} 36. e8=N+ {[%clk 0:01:26]}  Ke6 {[%clk 0:00:30]} 37. Ra7 {[%clk 0:01:20]}  a5 {[%clk 0:00:21]} 38. Nc7+ {[%clk 0:01:19]}  Kd6 {[%clk 0:00:18]} 39. Nd5 {[%clk 0:01:16]}  f5+ {[%clk 0:00:17]} 40. Kd4 {[%clk 0:01:13]}  Rd1+ {[%clk 0:00:17]} 41. Kc4 {[%clk 0:01:12]}  b5+ {[%clk 0:00:11]} 42. Kxb5 {[%clk 0:01:10]}  Kxd5 {[%clk 0:00:05]} 43. Kxa5 {[%clk 0:00:58]}  Ke4 {[%clk 0:00:05]} 44. Rg7 {[%clk 0:00:55]}  Rd6 {[%clk 0:00:04]} 45. Kb5 {[%clk 0:00:52]}  Kxf4 {[%clk 0:00:04]} 46. a4 {[%clk 0:00:52]}  Kg3 {[%clk 0:00:05]} 47. a5 {[%clk 0:00:52]}  Kxg2 {[%clk 0:00:05]} 48. a6 {[%clk 0:00:53]}  f4 {[%clk 0:00:02]} 49. a7 {[%clk 0:00:51]}  Rd8 {[%clk 0:00:02]} 50. h4 {[%clk 0:00:49]}  f3 {[%clk 0:00:02]} 51. Rxg6+ {[%clk 0:00:50]}  Kh3 {[%clk 0:00:02]} 52. Rf6 {[%clk 0:00:47]}  Kg2 {[%clk 0:00:03]} 53. Rg6+ {[%clk 0:00:38]}  Kh3 {[%clk 0:00:03]} 54. Rd6 {[%clk 0:00:27]}  f2 {[%clk 0:00:03]} 55. Rxd8 {[%clk 0:00:25]}  f1=Q+ {[%clk 0:00:03]} 56. Kb6 {[%clk 0:00:24]}  Qf2+ {[%clk 0:00:04]} 57. Kb7 {[%clk 0:00:22]}  Qf7+ {[%clk 0:00:04]} 58. Kb8 {[%clk 0:00:20]}  Qe7 {[%clk 0:00:04]} 59. Rc8 {[%clk 0:00:19]}  Qb4+ {[%clk 0:00:03]} 60. Kc7 {[%clk 0:00:18]}  Qc5+ {[%clk 0:00:03]} 61. Kb7 {[%clk 0:00:19]}  Qb5+ {[%clk 0:00:04]} 62. Kc7 {[%clk 0:00:19]}  Qa5+ {[%clk 0:00:04]} 63. Kb7 {[%clk 0:00:19]}  Qb5+ {[%clk 0:00:04]} 64. Kc7 {[%clk 0:00:20]}  Qc5+ {[%clk 0:00:04]} 65. Kb7 {[%clk 0:00:20]}  Qb5+ {[%clk 0:00:05]} 1/2-1/2


[Site "https://www.chess.com"]

[Event "Titled Tuesday Blitz May 23 Late 2023"]
[White "Weinstein, Joshua Ross"]
[Black "D`Arruda, Ricardo D."]
[WhiteFideId "30927714"]
[BlackFideId "100692"]
[WhiteElo "2334"]
[BlackElo "2440"]
[Result "1-0"]
[Round "06"]
[TimeControl "180+2"]
[Date "2023.05.23"]
[WhiteClock "0:00:20"]
[BlackClock "0:00:17"]

1. e4 {[%clk 0:03:00]}  c5 {[%clk 0:02:59]} 2. Nc3 {[%clk 0:03:01]}  e6 {[%clk 0:02:57]} 3. Bc4 {[%clk 0:03:01]}  Nc6 {[%clk 0:02:55]} 4. d3 {[%clk 0:03:01]}  Nf6 {[%clk 0:02:55]} 5. Bb3 {[%clk 0:03:01]}  d5 {[%clk 0:02:55]} 6. exd5 {[%clk 0:03:01]}  exd5 {[%clk 0:02:55]} 7. Nf3 {[%clk 0:03:00]}  Bg4 {[%clk 0:02:44]} 8. h3 {[%clk 0:02:57]}  Bh5 {[%clk 0:02:44]} 9. g4 {[%clk 0:02:56]}  Bg6 {[%clk 0:02:43]} 10. Bg5 {[%clk 0:02:40]}  Be7 {[%clk 0:02:38]} 11. Qe2 {[%clk 0:02:37]}  O-O {[%clk 0:02:36]} 12. O-O-O {[%clk 0:02:31]}  Na5 {[%clk 0:02:19]} 13. Bxf6 {[%clk 0:02:11]}  Nxb3+ {[%clk 0:02:18]} 14. axb3 {[%clk 0:02:11]}  Bxf6 {[%clk 0:02:19]} 15. h4 {[%clk 0:02:07]}  Re8 {[%clk 0:02:10]} 16. Qd2 {[%clk 0:02:07]}  h5 {[%clk 0:02:06]} 17. Rdg1 {[%clk 0:01:56]}  hxg4 {[%clk 0:01:42]} 18. Rxg4 {[%clk 0:01:53]}  Bh5 {[%clk 0:01:42]} 19. Rg3 {[%clk 0:01:51]}  Qd6 {[%clk 0:01:32]} 20. Kb1 {[%clk 0:01:35]}  a6 {[%clk 0:01:30]} 21. Ne2 {[%clk 0:01:27]}  Bxf3 {[%clk 0:00:53]} 22. Rxf3 {[%clk 0:01:27]}  Qe5 {[%clk 0:00:53]} 23. Nc3 {[%clk 0:01:27]}  b5 {[%clk 0:00:50]} 24. h5 {[%clk 0:01:05]}  b4 {[%clk 0:00:48]} 25. Nd1 {[%clk 0:01:04]}  Qe2 {[%clk 0:00:41]} 26. Qf4 {[%clk 0:01:00]}  c4 {[%clk 0:00:28]} 27. Rg3 {[%clk 0:00:44]}  Be5 {[%clk 0:00:24]} 28. Qg4 {[%clk 0:00:19]}  Qxg4 {[%clk 0:00:23]} 29. Rxg4 {[%clk 0:00:18]}  cxb3 {[%clk 0:00:24]} 30. cxb3 {[%clk 0:00:19]}  Kh7 {[%clk 0:00:24]} 31. Ne3 {[%clk 0:00:18]}  Rad8 {[%clk 0:00:23]} 32. Rxb4 {[%clk 0:00:17]}  Bf6 {[%clk 0:00:21]} 33. Rb7 {[%clk 0:00:17]}  Re7 {[%clk 0:00:20]} 34. Rxe7 {[%clk 0:00:17]}  Bxe7 {[%clk 0:00:21]} 35. Nf5 {[%clk 0:00:16]}  Bc5 {[%clk 0:00:21]} 36. h6 {[%clk 0:00:16]}  g6 {[%clk 0:00:19]} 37. d4 {[%clk 0:00:16]}  Bb4 {[%clk 0:00:19]} 38. Ne3 {[%clk 0:00:16]}  f5 {[%clk 0:00:19]} 39. Rc1 {[%clk 0:00:16]}  f4 {[%clk 0:00:19]} 40. Ng4 {[%clk 0:00:16]}  Rd7 {[%clk 0:00:19]} 41. Nf6+ {[%clk 0:00:14]}  Kxh6 {[%clk 0:00:19]} 42. Nxd7 {[%clk 0:00:15]}  Kg5 {[%clk 0:00:20]} 43. Ne5 {[%clk 0:00:15]}  Bd2 {[%clk 0:00:19]} 44. Rg1+ {[%clk 0:00:15]}  Kf5 {[%clk 0:00:18]} 45. Rxg6 {[%clk 0:00:16]}  Ke4 {[%clk 0:00:16]} 46. Rxa6 {[%clk 0:00:16]}  Kxd4 {[%clk 0:00:16]} 47. Nf3+ {[%clk 0:00:17]}  Kd3 {[%clk 0:00:17]} 48. Nxd2 {[%clk 0:00:18]}  Kxd2 {[%clk 0:00:17]} 49. Rd6 {[%clk 0:00:18]}  Ke2 {[%clk 0:00:18]} 50. Rxd5 {[%clk 0:00:18]}  f3 {[%clk 0:00:19]} 51. Rf5 {[%clk 0:00:18]}  Kxf2 {[%clk 0:00:19]} 52. b4 {[%clk 0:00:19]}  Ke3 {[%clk 0:00:19]} 53. b5 {[%clk 0:00:19]}  f2 {[%clk 0:00:20]} 54. b6 {[%clk 0:00:20]}  f1=Q+ {[%clk 0:00:17]} 55. Rxf1 {[%clk 0:00:20]} 1-0


[Site "https://www.chess.com"]

[Event "Titled Tuesday Blitz May 23 Late 2023"]
[White "Einarsson, Halldor Gretar"]
[Black "Wizard_of_Odds"]
[WhiteFideId "2300150"]
[WhiteElo "2110"]
[BlackElo "2438"]
[Result "0-1"]
[Round "06"]
[TimeControl "180+2"]
[Date "2023.05.23"]
[WhiteClock "0:00:00"]
[BlackClock "0:00:08"]

1. d4 {[%clk 0:03:00]}  d5 {[%clk 0:02:58]} 2. Nf3 {[%clk 0:03:00]}  Nf6 {[%clk 0:02:58]} 3. g3 {[%clk 0:02:59]}  e6 {[%clk 0:02:46]} 4. c4 {[%clk 0:02:54]}  Bb4+ {[%clk 0:02:44]} 5. Bd2 {[%clk 0:02:53]}  a5 {[%clk 0:02:43]} 6. Nc3 {[%clk 0:02:50]}  O-O {[%clk 0:02:41]} 7. Qc2 {[%clk 0:02:48]}  dxc4 {[%clk 0:02:37]} 8. Bg2 {[%clk 0:02:44]}  c6 {[%clk 0:02:26]} 9. O-O {[%clk 0:02:32]}  Nbd7 {[%clk 0:02:19]} 10. a3 {[%clk 0:02:21]}  Bxc3 {[%clk 0:02:18]} 11. bxc3 {[%clk 0:02:19]}  b5 {[%clk 0:02:12]} 12. Rfd1 {[%clk 0:02:04]}  Bb7 {[%clk 0:02:06]} 13. Bf4 {[%clk 0:02:02]}  Qe7 {[%clk 0:02:01]} 14. h4 {[%clk 0:01:55]}  Nd5 {[%clk 0:01:59]} 15. Bg5 {[%clk 0:01:52]}  f6 {[%clk 0:01:57]} 16. Bc1 {[%clk 0:01:51]}  N5b6 {[%clk 0:01:41]} 17. h5 {[%clk 0:01:39]}  c5 {[%clk 0:01:38]} 18. h6 {[%clk 0:01:34]}  g6 {[%clk 0:01:34]} 19. dxc5 {[%clk 0:01:30]}  Nxc5 {[%clk 0:01:31]} 20. Rb1 {[%clk 0:01:16]}  Be4 {[%clk 0:01:26]} 21. Qa2 {[%clk 0:01:07]}  Nb3 {[%clk 0:01:24]} 22. Rxb3 {[%clk 0:01:04]}  cxb3 {[%clk 0:01:24]} 23. Qxb3 {[%clk 0:01:04]}  b4 {[%clk 0:00:52]} 24. cxb4 {[%clk 0:00:52]}  Bd5 {[%clk 0:00:50]} 25. Qe3 {[%clk 0:00:39]}  Nc4 {[%clk 0:00:48]} 26. Qd4 {[%clk 0:00:39]}  Rfd8 {[%clk 0:00:34]} 27. Qc3 {[%clk 0:00:28]}  axb4 {[%clk 0:00:33]} 28. axb4 {[%clk 0:00:27]}  Rac8 {[%clk 0:00:30]} 29. Nd4 {[%clk 0:00:19]}  Bxg2 {[%clk 0:00:29]} 30. Kxg2 {[%clk 0:00:18]}  Ne5 {[%clk 0:00:26]} 31. Qb3 {[%clk 0:00:18]}  Kf7 {[%clk 0:00:23]} 32. Bb2 {[%clk 0:00:17]}  Qb7+ {[%clk 0:00:22]} 33. f3 {[%clk 0:00:17]}  Nc4 {[%clk 0:00:21]} 34. Ba1 {[%clk 0:00:14]}  Qd5 {[%clk 0:00:19]} 35. e4 {[%clk 0:00:11]}  Qd7 {[%clk 0:00:17]} 36. Rc1 {[%clk 0:00:09]}  Ne5 {[%clk 0:00:13]} 37. f4 {[%clk 0:00:07]}  Rxc1 {[%clk 0:00:12]} 38. fxe5 {[%clk 0:00:05]}  Rxa1 {[%clk 0:00:11]} 39. Qf3 {[%clk 0:00:00]}  f5 {[%clk 0:00:08]} 0-1


[Site "https://www.chess.com"]

[Event "Titled Tuesday Blitz May 23 Late 2023"]
[White "QuiesPrecatio"]
[Black "ThaBarWa"]
[WhiteElo "2434"]
[BlackElo "2319"]
[Result "0-1"]
[Round "06"]
[TimeControl "180+2"]
[Date "2023.05.23"]
[WhiteClock "0:00:07"]
[BlackClock "0:00:17"]

1. d4 {[%clk 0:02:56]}  Nf6 {[%clk 0:02:59]} 2. c4 {[%clk 0:02:55]}  e6 {[%clk 0:03:00]} 3. Nf3 {[%clk 0:02:55]}  d5 {[%clk 0:03:00]} 4. g3 {[%clk 0:02:55]}  dxc4 {[%clk 0:03:00]} 5. Bg2 {[%clk 0:02:55]}  a6 {[%clk 0:03:01]} 6. O-O {[%clk 0:02:56]}  Nc6 {[%clk 0:03:01]} 7. a4 {[%clk 0:02:49]}  Rb8 {[%clk 0:03:00]} 8. a5 {[%clk 0:02:48]}  b5 {[%clk 0:03:01]} 9. axb6 {[%clk 0:02:46]}  cxb6 {[%clk 0:03:01]} 10. Bg5 {[%clk 0:02:29]}  Bd6 {[%clk 0:02:32]} 11. Nbd2 {[%clk 0:02:13]}  b5 {[%clk 0:02:29]} 12. b3 {[%clk 0:02:13]}  h6 {[%clk 0:02:15]} 13. Bxf6 {[%clk 0:02:06]}  Qxf6 {[%clk 0:02:16]} 14. bxc4 {[%clk 0:02:02]}  b4 {[%clk 0:02:08]} 15. Nb3 {[%clk 0:01:51]}  O-O {[%clk 0:01:54]} 16. e4 {[%clk 0:01:48]}  Bc7 {[%clk 0:01:34]} 17. d5 {[%clk 0:01:32]}  Ne5 {[%clk 0:01:20]} 18. Nxe5 {[%clk 0:01:31]}  Qxe5 {[%clk 0:01:21]} 19. f4 {[%clk 0:01:27]}  Qc3 {[%clk 0:01:19]} 20. Rf3 {[%clk 0:01:26]}  Qxc4 {[%clk 0:01:11]} 21. d6 {[%clk 0:01:17]}  Bb6+ {[%clk 0:01:11]} 22. Kh1 {[%clk 0:01:17]}  Bb7 {[%clk 0:01:07]} 23. e5 {[%clk 0:01:03]}  Bxf3 {[%clk 0:00:52]} 24. Bxf3 {[%clk 0:01:04]}  a5 {[%clk 0:00:52]} 25. Rc1 {[%clk 0:00:56]}  Qb5 {[%clk 0:00:40]} 26. Bc6 {[%clk 0:00:56]}  Qa6 {[%clk 0:00:41]} 27. Ba4 {[%clk 0:00:54]}  Rfd8 {[%clk 0:00:35]} 28. Qf3 {[%clk 0:00:47]}  Rbc8 {[%clk 0:00:32]} 29. d7 {[%clk 0:00:23]}  Rxc1+ {[%clk 0:00:25]} 30. Nxc1 {[%clk 0:00:24]}  Qa8 {[%clk 0:00:26]} 31. Bc6 {[%clk 0:00:17]}  Qb8 {[%clk 0:00:26]} 32. Nb3 {[%clk 0:00:16]}  Qc7 {[%clk 0:00:22]} 33. f5 {[%clk 0:00:09]}  Rxd7 {[%clk 0:00:20]} 34. Bxd7 {[%clk 0:00:09]}  Qxd7 {[%clk 0:00:21]} 35. fxe6 {[%clk 0:00:10]}  Qxe6 {[%clk 0:00:22]} 36. Qa8+ {[%clk 0:00:10]}  Kh7 {[%clk 0:00:23]} 37. Nxa5 {[%clk 0:00:10]}  Bxa5 {[%clk 0:00:17]} 38. Qxa5 {[%clk 0:00:11]}  b3 {[%clk 0:00:17]} 39. Qc3 {[%clk 0:00:11]}  Qd5+ {[%clk 0:00:16]} 40. Kg1 {[%clk 0:00:11]}  Qd1+ {[%clk 0:00:16]} 41. Kf2 {[%clk 0:00:07]}  Qc2+ {[%clk 0:00:17]} 0-1


[Site "https://www.chess.com"]

[Event "Titled Tuesday Blitz May 23 Late 2023"]
[White "Zampronha, Wladimir Camilo"]
[Black "Pires, Marcos Vinicius Torsani"]
[WhiteFideId "2103087"]
[BlackFideId "2118939"]
[WhiteElo "2176"]
[BlackElo "2273"]
[Result "0-1"]
[Round "06"]
[TimeControl "180+2"]
[Date "2023.05.23"]
[WhiteClock "0:00:33"]
[BlackClock "0:00:36"]

1. e4 {[%clk 0:03:00]}  c5 {[%clk 0:02:59]} 2. Nf3 {[%clk 0:03:01]}  g6 {[%clk 0:02:59]} 3. d4 {[%clk 0:03:01]}  cxd4 {[%clk 0:02:59]} 4. Nxd4 {[%clk 0:03:02]}  Nc6 {[%clk 0:02:59]} 5. Nc3 {[%clk 0:03:02]}  Bg7 {[%clk 0:02:59]} 6. Be3 {[%clk 0:03:03]}  Nf6 {[%clk 0:02:59]} 7. Bc4 {[%clk 0:03:03]}  O-O {[%clk 0:02:59]} 8. Bb3 {[%clk 0:03:03]}  Re8 {[%clk 0:02:59]} 9. O-O {[%clk 0:03:00]}  d6 {[%clk 0:02:59]} 10. h3 {[%clk 0:02:59]}  Bd7 {[%clk 0:02:58]} 11. Re1 {[%clk 0:02:49]}  a6 {[%clk 0:02:57]} 12. Qd2 {[%clk 0:02:44]}  Rc8 {[%clk 0:02:55]} 13. Rad1 {[%clk 0:02:38]}  Na5 {[%clk 0:02:45]} 14. Qe2 {[%clk 0:02:32]}  b5 {[%clk 0:02:40]} 15. Bc1 {[%clk 0:02:25]}  Nc4 {[%clk 0:02:30]} 16. Nd5 {[%clk 0:02:23]}  Nxd5 {[%clk 0:02:24]} 17. exd5 {[%clk 0:02:22]}  Qb6 {[%clk 0:02:22]} 18. c3 {[%clk 0:02:10]}  Qc5 {[%clk 0:02:02]} 19. Nc2 {[%clk 0:01:52]}  Bf5 {[%clk 0:01:55]} 20. Ne3 {[%clk 0:01:47]}  Nxe3 {[%clk 0:01:46]} 21. Bxe3 {[%clk 0:01:46]}  Qc7 {[%clk 0:01:44]} 22. Bd4 {[%clk 0:01:41]}  Bxd4 {[%clk 0:01:31]} 23. Rxd4 {[%clk 0:01:42]}  Qc5 {[%clk 0:01:31]} 24. g4 {[%clk 0:01:35]}  Bd7 {[%clk 0:01:29]} 25. Re4 {[%clk 0:01:36]}  Qc7 {[%clk 0:01:03]} 26. Kf1 {[%clk 0:01:21]}  b4 {[%clk 0:00:49]} 27. Rxe7 {[%clk 0:00:56]}  Rxe7 {[%clk 0:00:37]} 28. Qxe7 {[%clk 0:00:56]}  Re8 {[%clk 0:00:38]} 29. Qf6 {[%clk 0:00:53]}  Bb5+ {[%clk 0:00:36]} 30. c4 {[%clk 0:00:33]}  Bxc4+ {[%clk 0:00:36]} 0-1


[Site "https://www.chess.com"]